fUSD/lending_fUSD_20240725
["ID","MTS","AMOUNT","RATE_DAILY","PERIOD"]
[333207873,1721947832975,-1000.0,0.00010537,2]
[333207874,1721947832985,-2500.0,0.0001068,2]
[333207875,1721947832994,-7500.0,0.00010758,2]
[333207876,1721947833003,-35526.1765,0.0001078,2]
[333207877,1721947833012,-70975.0721,0.0001078,2]
[333207878,1721947833022,-116027.0,0.000108,2]
[333207879,1721947833031,-1017.0,0.000108,2]
[333207880,1721947833041,-1073.0,0.0001082,2]
[333207881,1721947833050,-158.02600734,0.00010858,2]
[333207882,1721947833060,-3118.9658,0.00010858,2]
[333207883,1721947833069,-473.66,0.00010897,2]
[333207884,1721947833078,-247.92528344,0.00010898,2]
[333207885,1721947833088,-223.07957088,0.00010898,2]
[333207886,1721947833097,-397.92916646,0.000109,2]
[333207887,1721947833106,-23022.07135979,0.000109,2]
[333207888,1721947833116,-150.63975881,0.000109,2]
[333207889,1721947833125,-268.50582284,0.000109,2]
[333207890,1721947833134,-500.0,0.00010912,2]
[333207891,1721947833143,-500.0,0.00010958,2]
[333207892,1721947833153,-500.0,0.00010958,2]
[333207893,1721947833162,-521.88,0.00010958,2]
[333207894,1721947833172,-500.0,0.00010958,2]
[333207895,1721947833181,-500.0,0.00010958,2]
[333207896,1721947833191,-500.0,0.00010958,2]
[333207897,1721947833200,-500.0,0.00010958,2]
[333207898,1721947833209,-220.0,0.00010958,2]
[333207899,1721947833219,-500.0,0.00010958,2]
[333207900,1721947833228,-500.0,0.00010958,2]
[333207901,1721947833237,-500.0,0.00010958,2]
[333207902,1721947833247,-500.0,0.00010958,2]
[333207903,1721947833256,-500.0,0.00010958,2]
[333207904,1721947833265,-500.0,0.00010958,2]
[333207905,1721947833275,-500.0,0.00010958,2]
[333207906,1721947833285,-500.0,0.00010958,2]
[333207907,1721947833294,-500.0,0.00010958,2]
[333207908,1721947833304,-273.69565433,0.00010958,2]
[333207909,1721947833313,-500.0,0.00010958,2]
[333207910,1721947833322,-500.0,0.00010958,2]
[333207911,1721947833332,-500.0,0.00010958,2]
[333207912,1721947833342,-500.0,0.00010958,2]
[333207913,1721947833351,-500.0,0.00010958,2]
[333207914,1721947833360,-500.0,0.00010958,2]
[333207915,1721947833370,-500.0,0.00010958,2]
[333207916,1721947833379,-500.0,0.00010958,2]
[333207918,1721947833388,-500.0,0.00010958,2]
[333207920,1721947833397,-626.95,0.00010958,2]
[333207922,1721947833407,-500.0,0.00010958,2]
[333207923,1721947833416,-292.28,0.00010958,2]
[333207925,1721947833426,-645.17,0.00010958,2]
[333207926,1721947833435,-500.0,0.00010958,2]
[333207927,1721947833444,-284.52,0.00010958,2]
[333207928,1721947833453,-500.0,0.00010958,2]
[333207929,1721947833463,-163.62,0.00010958,2]
[333207931,1721947833472,-500.0,0.00010958,2]
[333207933,1721947833481,-500.0,0.00010958,2]
[333207935,1721947833490,-163.96,0.00010958,2]
[333207937,1721947833499,-500.0,0.00010958,2]
[333207939,1721947833508,-500.0,0.00010958,2]
[333207941,1721947833518,-500.0,0.00010958,2]
[333207943,1721947833527,-500.0,0.00010958,2]
[333207945,1721947833536,-500.0,0.00010958,2]
[333207946,1721947833546,-500.0,0.00010958,2]
[333207948,1721947833555,-500.0,0.00010958,2]
[333207950,1721947833564,-500.0,0.00010958,2]
[333207952,1721947833574,-500.0,0.00010958,2]
[333207955,1721947833583,-500.0,0.00010958,2]
[333207956,1721947833790,-419.69,0.00010958,2]
[333207957,1721947833799,-500.0,0.00010958,2]
[333207958,1721947833809,-500.0,0.00010958,2]
[333207959,1721947833818,-500.0,0.00010958,2]
[333207960,1721947833828,-500.0,0.00010958,2]
[333207961,1721947833837,-500.0,0.00010958,2]
[333207962,1721947833846,-538.34,0.00010958,2]
[333207963,1721947833859,-500.0,0.00010958,2]
[333207964,1721947833868,-249.73,0.00010958,2]
[333207965,1721947833877,-500.0,0.00010958,2]
[333207966,1721947833886,-363.87,0.00010958,2]
[333207967,1721947833895,-500.0,0.00010958,2]
[333207968,1721947833905,-500.0,0.00010958,2]
[333207969,1721947833914,-551.1120913,0.00010958,2]
[333207970,1721947833924,-500.0,0.00010958,2]
[333207971,1721947833934,-500.0,0.00010958,2]
[333207972,1721947833944,-429.15,0.00010958,2]
[333207973,1721947833953,-500.0,0.00010958,2]
[333207974,1721947833963,-500.0,0.00010958,2]
[333207975,1721947833972,-500.0,0.00010958,2]
[333207976,1721947833981,-591.34,0.00010958,2]
[333207977,1721947833990,-500.0,0.00010958,2]
[333207978,1721947834000,-500.0,0.00010958,2]
[333207979,1721947834010,-500.0,0.00010958,2]
[333207980,1721947834019,-500.0,0.00010958,2]
[333207981,1721947834029,-527.83,0.00010958,2]
[333207982,1721947834039,-500.0,0.00010958,2]
[333207983,1721947834048,-500.0,0.00010958,2]
[333207984,1721947834057,-500.0,0.00010958,2]
[333207985,1721947834067,-255.27,0.00010958,2]
[333207986,1721947834076,-500.0,0.00010958,2]
[333207987,1721947834085,-500.0,0.00010958,2]
[333207988,1721947834095,-500.0,0.00010958,2]
[333207989,1721947834104,-500.0,0.00010958,2]
[333207990,1721947834114,-500.0,0.00010958,2]
[333207991,1721947834123,-500.0,0.00010958,2]
[333207992,1721947834133,-566.55,0.00010958,2]
[333207993,1721947834143,-500.0,0.00010958,2]
[333207994,1721947834152,-500.0,0.00010958,2]
[333207995,1721947834161,-500.0,0.00010958,2]
[333207996,1721947834170,-500.0,0.00010958,2]
[333207997,1721947834180,-500.0,0.00010958,2]
[333207998,1721947834189,-500.0,0.00010958,2]
[333207999,1721947834199,-500.0,0.00010958,2]
[333208000,1721947834208,-500.0,0.00010958,2]
[333208001,1721947834217,-502.94857589,0.00010958,2]
[333208002,1721947834227,-500.0,0.00010958,2]
[333208003,1721947834237,-500.0,0.00010958,2]
[333208004,1721947834246,-500.0,0.00010958,2]
[333208005,1721947834255,-593.66,0.00010958,2]
[333208006,1721947834264,-621.76,0.00010958,2]
[333208007,1721947834274,-500.0,0.00010958,2]
[333208008,1721947834284,-534.68,0.00010958,2]
[333208009,1721947834294,-500.0,0.00010958,2]
[333208010,1721947834303,-500.0,0.00010958,2]
[333208011,1721947834312,-500.0,0.00010958,2]
[333208012,1721947834322,-501.09,0.00010958,2]
[333208013,1721947834331,-489.0,0.00010958,2]
[333208014,1721947834341,-500.0,0.00010958,2]
[333208015,1721947834350,-500.66764893,0.00010958,2]
[333208016,1721947834359,-500.0,0.00010958,2]
[333208017,1721947834369,-500.0,0.00010958,2]
[333208018,1721947834378,-225.92,0.00010958,2]
[333208019,1721947834388,-500.0,0.00010958,2]
[333208020,1721947834397,-500.0,0.00010958,2]
[333208021,1721947834406,-500.0,0.00010958,2]
[333208022,1721947834415,-321.28,0.00010958,2]
[333208023,1721947834425,-500.0,0.00010958,2]
[333208024,1721947834435,-500.0,0.00010958,2]
[333208025,1721947834444,-500.0,0.00010958,2]
[333208026,1721947834453,-500.0,0.00010958,2]
[333208027,1721947834463,-500.0,0.00010958,2]
[333208028,1721947834472,-500.0,0.00010958,2]
[333208029,1721947834482,-500.0,0.00010958,2]
[333208030,1721947834493,-547.7,0.00010958,2]
[333208031,1721947834503,-500.0,0.00010958,2]
[333208032,1721947834512,-349.77,0.00010958,2]
[333208033,1721947834522,-500.0,0.00010958,2]
[333208034,1721947834531,-430.7,0.00010958,2]
[333208035,1721947834540,-500.0,0.00010958,2]
[333208036,1721947834550,-500.0,0.00010958,2]
[333208037,1721947834559,-500.0,0.00010958,2]
[333208038,1721947834568,-552.83,0.00010958,2]
[333208039,1721947834577,-500.0,0.00010958,2]
[333208040,1721947834586,-500.0,0.00010958,2]
[333208041,1721947834595,-500.0,0.00010958,2]
[333208042,1721947834604,-626.49,0.00010958,2]
[333208043,1721947834614,-265.94630719,0.00010958,2]
[333208044,1721947834624,-500.0,0.00010958,2]
[333208045,1721947834633,-182.03,0.00010958,2]
[333208046,1721947834642,-500.0,0.00010958,2]
[333208047,1721947834652,-500.0,0.00010958,2]
[333208048,1721947834661,-500.0,0.00010958,2]
[333208049,1721947834670,-500.0,0.00010958,2]
[333208050,1721947834680,-301.49237904,0.00010958,2]
[333208051,1721947834689,-500.0,0.00010958,2]
[333208052,1721947834698,-523.13442314,0.00010958,2]
[333208053,1721947834708,-500.0,0.00010958,2]
[333208054,1721947834717,-530.72222543,0.00010958,2]
[333208055,1721947834726,-500.0,0.00010958,2]
[333208056,1721947834735,-500.0,0.00010958,2]
[333208057,1721947834745,-500.0,0.00010958,2]
[333208058,1721947834754,-500.0,0.00010958,2]
[333208059,1721947834764,-500.0,0.00010958,2]
[333208060,1721947834773,-303.94,0.00010958,2]
[333208061,1721947834782,-500.0,0.00010958,2]
[333208062,1721947834791,-500.0,0.00010958,2]
[333208063,1721947834801,-264.11,0.00010958,2]
[333208064,1721947834810,-500.0,0.00010958,2]
[333208065,1721947834819,-500.0,0.00010958,2]
[333208066,1721947834830,-500.0,0.00010958,2]
[333208067,1721947834839,-605.71,0.00010958,2]
[333208068,1721947834849,-500.0,0.00010958,2]
[333208069,1721947834862,-500.0,0.00010958,2]
[333208070,1721947834872,-500.0,0.00010958,2]
[333208071,1721947834881,-500.0,0.00010958,2]
[333208072,1721947834890,-500.0,0.00010958,2]
[333208073,1721947834900,-500.0,0.00010958,2]
[333208074,1721947834910,-267.82,0.00010958,2]
[333208075,1721947834919,-500.0,0.00010958,2]
[333208076,1721947834928,-632.59,0.00010958,2]
[333208077,1721947834940,-500.0,0.00010958,2]
[333208078,1721947834950,-500.0,0.00010958,2]
[333208079,1721947834959,-168.65,0.00010958,2]
[333208080,1721947834968,-579.57,0.00010958,2]
[333208081,1721947834978,-500.0,0.00010958,2]
[333208082,1721947834987,-500.0,0.00010958,2]
[333208083,1721947834996,-574.98,0.00010958,2]
[333208084,1721947835006,-500.0,0.00010958,2]
[333208085,1721947835015,-500.0,0.00010958,2]
[333208086,1721947835025,-500.0,0.00010958,2]
[333208087,1721947835034,-500.0,0.00010958,2]
[333208088,1721947835043,-500.0,0.00010958,2]
[333208089,1721947835053,-500.0,0.00010958,2]
[333208090,1721947835062,-500.0,0.00010958,2]
[333208091,1721947835071,-500.0,0.00010958,2]
[333208092,1721947835081,-503.07430045,0.00010958,2]
[333208093,1721947835090,-500.0,0.00010958,2]
[333208094,1721947835100,-500.0,0.00010958,2]
[333208095,1721947835109,-302.38816171,0.00010958,2]
[333208096,1721947835118,-500.0,0.00010958,2]
[333208097,1721947835128,-500.0,0.00010958,2]
[333208098,1721947835138,-606.93,0.00010958,2]
[333208099,1721947835147,-500.0,0.00010958,2]
[333208100,1721947835156,-500.0,0.00010958,2]
[333208101,1721947835166,-500.0,0.00010958,2]
[333208102,1721947835175,-500.0,0.00010958,2]
[333208103,1721947835185,-500.0,0.00010958,2]
[333208104,1721947835194,-500.0,0.00010958,2]
[333208105,1721947835203,-500.0,0.00010958,2]
[333208106,1721947835213,-500.0,0.00010958,2]
[333208107,1721947835222,-500.0,0.00010958,2]
[333208108,1721947835232,-500.0,0.00010958,2]
[333208109,1721947835245,-500.0,0.00010958,2]
[333208110,1721947835254,-500.0,0.00010958,2]
[333208111,1721947835268,-500.0,0.00010958,2]
[333208112,1721947835277,-500.0,0.00010958,2]
[333208113,1721947835287,-500.0,0.00010958,2]
[333208114,1721947835296,-500.0,0.00010958,2]
[333208115,1721947835306,-323.38,0.00010958,2]
[333208116,1721947835316,-500.0,0.00010958,2]
[333208117,1721947835325,-500.0,0.00010958,2]
[333208118,1721947835335,-500.0,0.00010958,2]
[333208119,1721947835345,-500.0,0.00010958,2]
[333208120,1721947835355,-500.0,0.00010958,2]
[333208121,1721947835364,-485.56,0.00010958,2]
[333208122,1721947835373,-500.0,0.00010958,2]
[333208123,1721947835383,-500.0,0.00010958,2]
[333208124,1721947835392,-500.0,0.00010958,2]
[333208125,1721947835407,-500.0,0.00010958,2]
[333208126,1721947835421,-500.0,0.00010958,2]
[333208127,1721947835435,-620.03,0.00010958,2]
[333208128,1721947835447,-500.0,0.00010958,2]
[333208129,1721947835458,-500.0,0.00010958,2]
[333208130,1721947835470,-500.0,0.00010958,2]
[333208131,1721947835483,-500.0,0.00010958,2]
[333208132,1721947835498,-500.0,0.00010958,2]
[333208133,1721947835511,-500.0,0.00010958,2]
[333208134,1721947835524,-500.0,0.00010958,2]
[333208135,1721947835538,-500.0,0.00010958,2]
[333208136,1721947835551,-500.0,0.00010958,2]
[333208137,1721947835564,-500.0,0.00010958,2]
[333208138,1721947835576,-500.0,0.00010958,2]
[333208139,1721947835588,-500.0,0.00010958,2]
[333208140,1721947835602,-643.78,0.00010958,2]
[333208141,1721947835615,-500.0,0.00010958,2]
[333208142,1721947835627,-500.0,0.00010958,2]
[333208143,1721947835639,-500.0,0.00010958,2]
[333208144,1721947835650,-500.0,0.00010958,2]
[333208145,1721947835661,-500.0,0.00010958,2]
[333208146,1721947835673,-201.08,0.00010958,2]
[333208147,1721947835686,-500.0,0.00010958,2]
[333208148,1721947835698,-474.17954123,0.00010958,2]
[333208149,1721947835713,-500.0,0.00010958,2]
[333208150,1721947835728,-444.36,0.00010958,2]
[333208151,1721947835741,-187.55794279,0.00010958,2]
[333208152,1721947835755,-500.0,0.00010958,2]
[333208153,1721947835766,-500.0,0.00010958,2]
[333208154,1721947835777,-390.1,0.00010958,2]
[333208155,1721947835788,-500.0,0.00010958,2]
[333208156,1721947835800,-500.0,0.00010958,2]
[333208157,1721947835812,-500.0,0.00010958,2]
[333208158,1721947835825,-234.99,0.00010958,2]
[333208159,1721947835837,-500.0,0.00010958,2]
[333208160,1721947835849,-500.0,0.00010958,2]
[333208161,1721947835864,-471.58,0.00010958,2]
[333208162,1721947835876,-500.0,0.00010958,2]
[333208163,1721947835888,-500.0,0.00010958,2]
[333208164,1721947835904,-500.0,0.00010958,2]
[333208165,1721947835916,-500.0,0.00010958,2]
[333208166,1721947835928,-150.0,0.00010958,2]
[333208167,1721947835940,-150.0,0.00010958,2]
[333208168,1721947835951,-500.0,0.00010958,2]
[333208169,1721947835963,-506.04370622,0.00010958,2]
[333208170,1721947835975,-500.0,0.00010958,2]
[333208171,1721947835988,-500.0,0.00010958,2]
[333208172,1721947836000,-500.0,0.00010958,2]
[333208173,1721947836012,-561.61483916,0.00010958,2]
[333208174,1721947836024,-500.0,0.00010958,2]
[333208175,1721947836035,-500.0,0.00010958,2]
[333208176,1721947836047,-500.0,0.00010958,2]
[333208177,1721947836059,-500.0,0.00010958,2]
[333208178,1721947836071,-500.0,0.00010958,2]
[333208179,1721947836082,-500.0,0.00010958,2]
[333208180,1721947836094,-500.0,0.00010958,2]
[333208181,1721947836109,-500.0,0.00010958,2]
[333208182,1721947836120,-500.0,0.00010958,2]
[333208183,1721947836131,-162.88659738,0.00010958,2]
[333208184,1721947836173,-337.11340262,0.00010958,2]
[333208185,1721947836185,-500.0,0.00010958,2]
[333208186,1721947836197,-217.07,0.00010958,2]
[333208187,1721947836209,-500.0,0.00010958,2]
[333208188,1721947836220,-386.94164467,0.00010958,2]
[333208189,1721947836245,-113.05835533,0.00010958,2]
[333208190,1721947836256,-380.51864537,0.00010958,2]
[333208191,1721947836271,-119.48135463,0.00010958,2]
[333208192,1721947836282,-145.34661472,0.00010958,2]
[333208193,1721947836297,-354.65338528,0.00010958,2]
[333208194,1721947836308,-407.37,0.00010958,2]
[333208195,1721947836320,-500.0,0.00010958,2]
[333208196,1721947836332,-500.0,0.00010958,2]
[333208197,1721947836343,-500.0,0.00010958,2]
[333208198,1721947836355,-500.0,0.00010958,2]
[333208199,1721947836367,-500.0,0.00010958,2]
[333208200,1721947836378,-500.0,0.00010958,2]
[333208201,1721947836390,-500.0,0.00010958,2]
[333208202,1721947836402,-500.0,0.00010958,2]
[333208203,1721947836413,-500.0,0.00010958,2]
[333208204,1721947836424,-500.0,0.00010958,2]
[333208205,1721947836436,-500.0,0.00010958,2]
[333208206,1721947836448,-398.4347964,0.00010958,2]
[333208207,1721947836459,-500.0,0.00010958,2]
[333208208,1721947836471,-503.42,0.00010958,2]
[333208209,1721947836482,-500.0,0.00010958,2]
[333208210,1721947836493,-500.0,0.00010958,2]
[333208211,1721947836505,-500.0,0.00010958,2]
[333208212,1721947836517,-500.0,0.00010958,2]
[333208213,1721947836528,-500.0,0.00010958,2]
[333208214,1721947836539,-500.0,0.00010958,2]
[333208215,1721947836552,-500.0,0.00010958,2]
[333208216,1721947836564,-500.0,0.00010958,2]
[333208217,1721947836575,-500.0,0.00010958,2]
[333208218,1721947836586,-500.0,0.00010958,2]
[333208219,1721947836597,-292.35642826,0.00010958,2]
[333208220,1721947836612,-207.64357174,0.00010958,2]
[333208221,1721947836624,-181.6277486,0.00010958,2]
[333208222,1721947836636,-500.0,0.00010958,2]
[333208223,1721947836647,-500.0,0.00010958,2]
[333208224,1721947836659,-500.0,0.00010958,2]
[333208225,1721947836671,-241.71386149,0.00010958,2]
[333208226,1721947836685,-258.28613851,0.00010958,2]
[333208227,1721947836697,-286.29094142,0.00010958,2]
[333208228,1721947836711,-213.70905858,0.00010958,2]
[333208229,1721947836722,-204.83101815,0.00010958,2]
[333208230,1721947836736,-295.16898185,0.00010958,2]
[333208231,1721947836748,-500.0,0.00010958,2]
[333208232,1721947836759,-42.6591032,0.00010958,2]
[333208233,1721947836773,-457.3408968,0.00010958,2]
[333208234,1721947836785,-500.0,0.00010958,2]
[333208235,1721947836796,-246.29751384,0.00010958,2]
[333208236,1721947836810,-253.70248616,0.00010958,2]
[333208237,1721947836822,-550.17,0.00010958,2]
[333208238,1721947836834,-500.0,0.00010958,2]
[333208239,1721947836846,-500.0,0.00010958,2]
[333208240,1721947836861,-500.0,0.00010958,2]
[333208241,1721947836873,-210.85416882,0.00010958,2]
[333208242,1721947836887,-411.02583118,0.00010958,2]
[333208243,1721947836899,-500.0,0.00010958,2]
[333208244,1721947836910,-500.0,0.00010958,2]
[333208245,1721947836922,-500.0,0.00010958,2]
[333208246,1721947836936,-500.0,0.00010958,2]
[333208247,1721947836947,-500.0,0.00010958,2]
[333208248,1721947836959,-572.83,0.00010958,2]
[333208249,1721947836971,-500.0,0.00010958,2]
[333208250,1721947836982,-500.0,0.00010958,2]
[333208251,1721947836995,-537.27,0.00010958,2]
[333208252,1721947837006,-500.0,0.00010958,2]
[333208253,1721947837018,-500.0,0.00010958,2]
[333208254,1721947837029,-527.92,0.00010958,2]
[333208255,1721947837042,-500.0,0.00010958,2]
[333208256,1721947837053,-411.04171885,0.00010958,2]
[333208257,1721947837064,-606.09,0.00010958,2]
[333208258,1721947837076,-500.0,0.00010958,2]
[333208259,1721947837087,-500.0,0.00010958,2]
[333208260,1721947837098,-504.64951455,0.00010958,2]
[333208261,1721947837110,-500.0,0.00010958,2]
[333208262,1721947837121,-500.0,0.00010958,2]
[333208263,1721947837134,-423.98,0.00010958,2]
[333208264,1721947837146,-500.0,0.00010958,2]
[333208265,1721947837157,-500.0,0.00010958,2]
[333208266,1721947837170,-500.0,0.00010958,2]
[333208267,1721947837182,-500.0,0.00010958,2]
[333208268,1721947837195,-500.0,0.00010958,2]
[333208269,1721947837206,-381.83,0.00010958,2]
[333208270,1721947837218,-500.0,0.00010958,2]
[333208271,1721947837230,-500.0,0.00010958,2]
[333208272,1721947837241,-500.0,0.00010958,2]
[333208273,1721947837254,-328.05,0.00010958,2]
[333208274,1721947837266,-500.0,0.00010958,2]
[333208275,1721947837278,-500.0,0.00010958,2]
[333208276,1721947837289,-500.0,0.00010958,2]
[333208277,1721947837298,-500.0,0.00010958,2]
[333208278,1721947837309,-500.0,0.00010958,2]
[333208279,1721947837319,-500.0,0.00010958,2]
[333208280,1721947837328,-500.0,0.00010958,2]
[333208281,1721947837338,-500.0,0.00010958,2]
[333208282,1721947837348,-306.56,0.00010958,2]
[333208283,1721947837358,-500.0,0.00010958,2]
[333208284,1721947837367,-500.0,0.00010958,2]
[333208285,1721947837378,-500.0,0.00010958,2]
[333208286,1721947837662,-289.45,0.00010958,2]
[333208287,1721947837684,-181.25218149,0.00010958,2]
[333208288,1721947838011,-250.0,0.00010958,2]
[333208295,1721947838079,-68.74781851,0.00010958,2]
[333208297,1721947838088,-273.44,0.00010958,2]
[333208299,1721947838097,-129.85218149,0.00010958,2]
[333208329,1721947838809,-370.14781851,0.00010958,2]
[333208330,1721947838819,-329.85218149,0.00010958,2]
[333208332,1721947838831,-19.86781851,0.00010958,2]
[333208334,1721947838840,-500.0,0.00010958,2]
[333208336,1721947838849,-291.18887762,0.00010958,2]
[333208338,1721947838865,-208.81112238,0.00010958,2]
[333208340,1721947838874,-500.0,0.00010958,2]
[333208341,1721947838883,-266.48,0.00010958,2]
[333208342,1721947838894,-500.0,0.00010958,2]
[333208343,1721947838903,-416.29,0.00010958,2]
[333208344,1721947838913,-500.0,0.00010958,2]
[333208345,1721947838922,-500.0,0.00010958,2]
[333208347,1721947838933,-311.8,0.00010958,2]
[333208349,1721947838942,-129.24154762,0.00010958,2]
[333208350,1721947839013,-370.75845238,0.00010958,2]
[333208351,1721947839022,-500.0,0.00010958,2]
[333208352,1721947839032,-197.68,0.00010958,2]
[333208353,1721947839041,-500.0,0.00010958,2]
[333208354,1721947839051,-500.0,0.00010958,2]
[333208355,1721947839060,-398.82247014,0.00010958,2]
[333208356,1721947839085,-101.17752986,0.00010958,2]
[333208357,1721947839095,-500.0,0.00010958,2]
[333208358,1721947839105,-194.39248014,0.00010958,2]
[333208361,1721947840284,-305.60751986,0.00010958,2]
[333208362,1721947840294,-500.0,0.00010958,2]
[333208363,1721947840304,-313.83,0.00010958,2]
[333208364,1721947840313,-500.0,0.00010958,2]
[333208365,1721947840323,-198.52,0.00010958,2]
[333208366,1721947840333,-500.0,0.00010958,2]
[333208367,1721947840342,-638.47636179,0.00010958,2]
[333208368,1721947840355,-500.0,0.00010958,2]
[333208369,1721947840364,-500.0,0.00010958,2]
[333208370,1721947840374,-556.78311866,0.00010958,2]
[333208371,1721947840384,-500.0,0.00010958,2]
[333208372,1721947840393,-500.0,0.00010958,2]
[333208373,1721947840403,-351.19,0.00010958,2]
[333208374,1721947840412,-500.0,0.00010958,2]
[333208375,1721947840422,-500.0,0.00010958,2]
[333208376,1721947840431,-500.0,0.00010958,2]
[333208377,1721947840441,-500.0,0.00010958,2]
[333208378,1721947840451,-394.32248646,0.00010958,2]
[333208379,1721947840461,-500.0,0.00010958,2]
[333208380,1721947840471,-341.51,0.00010958,2]
[333208381,1721947840676,-500.0,0.00010958,2]
[333208382,1721947840687,-274.28399242,0.00010958,2]
[333208383,1721947840697,-500.0,0.00010958,2]
[333208384,1721947840706,-500.0,0.00010958,2]
[333208385,1721947840715,-500.0,0.00010958,2]
[333208386,1721947840724,-500.0,0.00010958,2]
[333208387,1721947840733,-541.08,0.00010958,2]
[333208388,1721947840742,-500.0,0.00010958,2]
[333208389,1721947840751,-500.0,0.00010958,2]
[333208390,1721947840761,-500.0,0.00010958,2]
[333208391,1721947840770,-500.0,0.00010958,2]
[333208392,1721947840779,-500.0,0.00010958,2]
[333208393,1721947840788,-500.0,0.00010958,2]
[333208394,1721947840797,-500.0,0.00010958,2]
[333208395,1721947840806,-500.0,0.00010958,2]
[333208396,1721947840816,-504.32193918,0.00010958,2]
[333208397,1721947840824,-353.78,0.00010958,2]
[333208398,1721947840833,-500.0,0.00010958,2]
[333208399,1721947840842,-545.56576059,0.00010958,2]
[333208400,1721947840854,-500.0,0.00010958,2]
[333208401,1721947840865,-500.0,0.00010958,2]
[333208402,1721947840876,-604.45,0.00010958,2]
[333208403,1721947840885,-500.0,0.00010958,2]
[333208404,1721947840895,-500.0,0.00010958,2]
[333208405,1721947840906,-500.0,0.00010958,2]
[333208406,1721947840915,-517.42,0.00010958,2]
[333208407,1721947840925,-541.03,0.00010958,2]
[333208408,1721947840936,-500.0,0.00010958,2]
[333208409,1721947840945,-500.0,0.00010958,2]
[333208410,1721947840954,-500.0,0.00010958,2]
[333208411,1721947840964,-500.0,0.00010958,2]
[333208412,1721947840973,-500.0,0.00010958,2]
[333208413,1721947840982,-355.49,0.00010958,2]
[333208414,1721947840992,-500.0,0.00010958,2]
[333208415,1721947841001,-500.0,0.00010958,2]
[333208416,1721947841010,-506.18689905,0.00010958,2]
[333208417,1721947841020,-500.0,0.00010958,2]
[333208418,1721947841029,-501.0,0.00010958,2]
[333208419,1721947841038,-490.9058038,0.00010958,2]
[333208420,1721947841047,-500.0,0.00010958,2]
[333208421,1721947841057,-187.76,0.00010958,2]
[333208422,1721947841066,-337.1,0.00010958,2]
[333208423,1721947841075,-500.0,0.00010958,2]
[333208424,1721947841084,-500.0,0.00010958,2]
[333208425,1721947841093,-500.0,0.00010958,2]
[333208426,1721947841103,-504.31250732,0.00010958,2]
[333208427,1721947841112,-192.32,0.00010958,2]
[333208428,1721947841122,-500.0,0.00010958,2]
[333208429,1721947841131,-500.0,0.00010958,2]
[333208430,1721947841141,-500.0,0.00010958,2]
[333208431,1721947841150,-500.0,0.00010958,2]
[333208432,1721947841159,-500.0,0.00010958,2]
[333208433,1721947841169,-542.6,0.00010958,2]
[333208434,1721947841178,-500.0,0.00010958,2]
[333208435,1721947841187,-617.2,0.00010958,2]